bitfinex/quotes_BTCUSD_20251201
["timestamp","ask_amount","ask_price","bid_price","bid_amount"]
[1764565654428,2.55022986,85871.0,85870.0,1e-08]
[1764565654848,1.11744146,85871.0,85870.0,1e-08]
[1764565655161,2.88229046,85871.0,85870.0,1e-08]
[1764565655346,2.91346286,85871.0,85870.0,1e-08]
[1764565655549,2.88229046,85871.0,85870.0,1e-08]
[1764565656154,2.91346286,85871.0,85870.0,1e-08]
[1764565656552,2.88229046,85871.0,85870.0,1e-08]
[1764565657232,2.43774655,85871.0,85870.0,1e-08]
[1764565657354,1.29631755,85871.0,85870.0,1e-08]
[1764565657996,1.13877455,85871.0,85870.0,1e-08]
[1764565658175,1.14613455,85871.0,85870.0,1e-08]
[1764565658583,1.00373855,85871.0,85870.0,1e-08]
[1764565658973,1.59708655,85871.0,85870.0,1e-08]
[1764565659173,1.39232955,85871.0,85870.0,1e-08]
[1764565659427,1.50603246,85871.0,85870.0,1e-08]
[1764565660155,1.39232955,85871.0,85870.0,1e-08]
[1764565660683,1.18179801,85871.0,85870.0,1e-08]
[1764565660949,1.14712955,85871.0,85870.0,1e-08]
[1764565662886,0.87447956,85871.0,85870.0,1e-08]
[1764565663183,1.02558555,85871.0,85870.0,1e-08]
[1764565663407,1.00398221,85871.0,85870.0,1e-08]
[1764565663542,0.96306256,85871.0,85870.0,1e-08]
[1764565663741,1.02558555,85871.0,85870.0,1e-08]
[1764565665146,1.05673024,85871.0,85870.0,1e-08]
[1764565665434,1.02558555,85871.0,85870.0,1e-08]
[1764565665664,1.13928846,85871.0,85870.0,1e-08]
[1764565665801,1.17044253,85871.0,85870.0,1e-08]
[1764565666453,1.13928846,85871.0,85870.0,1e-08]
[1764565667273,1.13428846,85871.0,85870.0,1e-08]
[1764565667574,1.14328846,85871.0,85870.0,0.00100001]
[1764565667790,1.68388146,85871.0,85870.0,0.00100001]
[1764565668000,1.93855846,85871.0,85870.0,1e-08]
[1764565669956,1.82485555,85871.0,85870.0,1e-08]
[1764565670456,4.53511401,85871.0,85870.0,1e-08]
[1764565670803,3.82614801,85871.0,85870.0,1e-08]
[1764565671126,3.21543901,85871.0,85870.0,1e-08]
[1764565671330,0.82597801,85871.0,85870.0,1e-08]
[1764565671554,3.42629946,85871.0,85870.0,1e-08]
[1764565671773,3.54870046,85871.0,85870.0,1e-08]
[1764565671974,6.12244146,85871.0,85870.0,1e-08]
[1764565674802,5.85615912,85871.0,85870.0,1e-08]
[1764565674983,6.15637112,85871.0,85870.0,1e-08]
[1764565675189,6.20836612,85871.0,85870.0,1e-08]
[1764565676385,0.55596175,85851.0,85850.0,0.0002]
[1764565676588,0.6948728,85851.0,85850.0,0.00025053]
[1764565676916,0.33458806,85851.0,85850.0,0.00025053]
[1764565677115,0.01894806,85851.0,85850.0,0.00025053]
[1764565677495,0.34194806,85851.0,85850.0,0.00025053]
[1764565677696,0.40647105,85851.0,85850.0,0.00125053]
[1764565677904,0.48865105,85851.0,85850.0,0.00125053]
[1764565678510,0.48665105,85851.0,85850.0,0.00025053]
[1764565678705,0.48665105,85851.0,85850.0,0.00225053]
[1764565678706,0.48765105,85851.0,85850.0,0.00225053]
[1764565679121,0.48665105,85851.0,85850.0,0.00025053]
[1764565679591,0.43686105,85851.0,85850.0,0.00025053]
[1764565679739,0.40447105,85851.0,85850.0,0.00025053]
[1764565680359,0.40647105,85851.0,85850.0,0.00125053]
[1764565680800,0.40647105,85851.0,85850.0,0.00025053]
[1764565680801,0.40447105,85851.0,85850.0,0.00025053]
[1764565680974,0.40547105,85851.0,85850.0,0.00125053]
[1764565681910,0.40547105,85851.0,85850.0,0.00189348]
[1764565683172,0.43786105,85851.0,85850.0,0.00189348]
[1764565683407,0.40547105,85851.0,85850.0,0.00189348]
[1764565684299,0.48765105,85851.0,85850.0,0.00189348]
[1764565684895,0.5897659,85851.0,85850.0,0.00189348]
[1764565685098,0.48765105,85851.0,85850.0,0.00189348]
[1764565686413,0.51269525,85851.0,85850.0,0.00189348]
[1764565686788,0.51169525,85851.0,85850.0,0.00089348]
[1764565687043,0.67595188,85841.0,85840.0,1e-08]
[1764565687243,1.11376781,85823.0,85822.0,0.001165]
[1764565687399,1.05388601,85823.0,85822.0,0.00127555]
[1764565687746,1.12078301,85823.0,85822.0,0.00127555]
[1764565687903,1.12078301,85823.0,85783.0,0.01165732]
[1764565687904,2.96080699,85821.0,85778.0,0.01904]
[1764565688103,2.59042297,85813.0,85812.0,0.01269556]
[1764565688333,0.24471546,85790.0,85778.0,0.01904]
[1764565688564,0.31463845,85790.0,85789.0,0.06320191]
[1764565689054,0.39681845,85790.0,85789.0,0.06320191]
[1764565689210,0.39677917,85790.0,85789.0,0.06320191]
[1764565689866,0.65844039,85790.0,85789.0,0.06320191]
[1764565690286,0.71977917,85790.0,85789.0,0.06320191]
[1764565690432,0.66998917,85790.0,85789.0,0.06320191]
[1764565690635,0.67098917,85790.0,85789.0,0.06420191]
[1764565690837,0.66998917,85790.0,85789.0,0.06320191]
[1764565691199,0.56767618,85790.0,85789.0,0.06420191]
[1764565691478,0.57807618,85790.0,85789.0,0.09886191]
[1764565691876,0.57907618,85790.0,85789.0,0.09886191]
[1764565692168,0.25607618,85790.0,85743.0,0.09260722]
[1764565692359,0.0233942,85790.0,85784.0,0.01165718]
[1764565692508,0.0074,85789.0,85786.0,0.01165691]
[1764565692713,0.0074,85789.0,85788.0,0.00199483]
[1764565693286,0.01894878,85789.0,85788.0,0.00199483]
[1764565693894,0.01994878,85789.0,85788.0,0.00599483]
[1764565694318,0.001,85789.0,85788.0,0.00599483]
[1764565694567,0.01158806,85789.0,85788.0,0.00599483]
[1764565695543,0.56771818,85789.0,85788.0,0.00599483]
[1764565696806,0.68698818,85789.0,85788.0,0.00599483]
[1764565696958,0.61681818,85789.0,85788.0,0.00599483]
[1764565697161,0.74951117,85789.0,85788.0,0.00599483]
[1764565698550,0.75051117,85789.0,85788.0,0.00599483]
[1764565698998,0.74951117,85789.0,85788.0,0.00599483]
[1764565699395,0.74951117,85789.0,85788.0,0.00199483]
[1764565699603,0.75351117,85789.0,85788.0,0.00299483]
[1764565699783,0.74951117,85789.0,85788.0,0.00199483]
[1764565700379,0.75151117,85789.0,85788.0,0.00299483]
[1764565700780,0.74951117,85789.0,85788.0,0.00199483]
[1764565700986,0.75351117,85789.0,85788.0,0.00299483]
[1764565701796,0.75451117,85789.0,85788.0,0.00299483]
[1764565705139,0.68434117,85789.0,85788.0,0.00299483]
[1764565705341,0.62921818,85789.0,85788.0,0.00299483]
[1764565705786,0.70797818,85789.0,85788.0,0.00299483]
[1764565705985,0.77050117,85789.0,85788.0,0.00299483]
[1764565706718,0.87261602,85789.0,85788.0,0.00299483]
[1764565706943,0.77050117,85789.0,85788.0,0.00299483]
[1764565713277,0.79543512,85789.0,85788.0,0.00299483]
[1764565715388,1.24573302,85789.0,85788.0,0.00299483]
[1764565715581,0.82654702,85789.0,85788.0,0.00299483]
[1764565715779,1.24573302,85789.0,85788.0,0.00299483]
[1764565715980,1.24189402,85789.0,85788.0,0.00299483]
[1764565716409,1.74453612,85789.0,85788.0,0.00299483]
[1764565716737,1.71812112,85789.0,85788.0,0.00299483]
[1764565716926,1.58873912,85789.0,85788.0,0.00299483]
[1764565717300,0.01166112,85755.0,85744.0,0.00608229]
[1764565717586,0.01166194,85749.0,85745.0,0.03128661]
[1764565717766,0.01166153,85752.0,85747.0,0.01166221]
[1764565717767,0.01166167,85751.0,85747.0,0.01166221]
[1764565717923,0.24488978,85753.0,85748.0,0.01166207]
[1764565718124,0.01166153,85752.0,85749.0,0.01166194]
[1764565718541,7.334e-05,85752.0,85749.0,0.01166194]
[1764565718744,7.334e-05,85752.0,85751.0,0.23323343]
[1764565719256,0.00207334,85752.0,85749.0,0.24989842]
[1764565719644,7.334e-05,85752.0,85749.0,0.01166194]
[1764565719879,0.00207334,85752.0,85751.0,0.005]
[1764565720095,0.23530405,85752.0,85751.0,0.005]
[1764565720293,0.23530405,85752.0,85726.0,0.06450758]
[1764565720294,0.24486229,85736.0,85726.0,0.06450758]
[1764565720431,0.24495481,85731.0,85726.0,0.06450758]
[1764565720631,0.23329319,85730.0,85726.0,0.06450758]
[1764565720836,0.23329319,85730.0,85728.0,0.0380347]
[1764565721120,0.24494992,85732.0,85728.0,0.05649608]
[1764565721322,0.23325709,85743.0,85731.0,0.01166439]
[1764565721438,0.7057255,85740.0,85731.0,0.01846073]
[1764565721640,0.01166357,85737.0,85732.0,0.01166425]
[1764565721844,0.23326632,85739.0,85733.0,0.2332824]
[1764565722086,0.01166357,85737.0,85733.0,0.01166412]
[1764565722283,0.69572551,85740.0,85735.0,0.23327695]
[1764565722549,0.00999999,85750.0,85744.0,0.24491509]
[1764565722763,0.0074,85751.0,85747.0,0.01166221]
[1764565722966,0.03200477,85752.0,85748.0,0.01845697]
[1764565723167,0.0436663,85752.0,85744.0,0.01166262]
[1764565723420,0.0436663,85752.0,85751.0,0.0011914]
[1764565723421,0.03200477,85752.0,85751.0,0.0011914]
[1764565724712,7.334e-05,85752.0,85751.0,0.2517149]
[1764565724896,7.334e-05,85752.0,85751.0,0.23442483]
[1764565725098,0.0098401,85760.0,85757.0,0.01166085]
[1764565725256,0.01166017,85762.0,85757.0,0.01205507]
[1764565725462,0.01166003,85763.0,85759.0,0.01166058]
[1764565725661,0.0116599,85764.0,85759.0,0.01166058]
[1764565725864,0.0116599,85764.0,85760.0,0.24486939]
[1764565726617,0.01166003,85763.0,85760.0,0.01166044]
[1764565726973,0.01166003,85763.0,85759.0,0.01466058]
[1764565727172,0.01166017,85762.0,85759.0,0.01466058]
[1764565727415,0.24486478,85762.0,85759.0,0.003]
[1764565727720,0.23320623,85761.0,85759.0,0.003]
[1764565728231,0.24480245,85758.0,85757.0,0.00039422]
[1764565729467,0.24580245,85758.0,85757.0,0.00339422]
[1764565729935,0.24480245,85758.0,85757.0,0.00039422]
[1764565731052,0.23321439,85758.0,85757.0,0.00039422]
[1764565731256,0.23421439,85758.0,85757.0,0.00339422]
[1764565731457,0.23421439,85758.0,85757.0,0.00439235]
[1764565732052,0.24480245,85758.0,85757.0,0.00139235]
[1764565732472,0.001,85758.0,85757.0,0.00239235]
[1764565732681,0.9632363,85767.0,85760.0,0.23320895]
[1764565732897,0.01166003,85763.0,85758.0,0.01166071]
[1764565733025,0.01165936,85768.0,85761.0,0.01166031]
[1764565733228,0.0074,85771.0,85768.0,0.01165936]
[1764565733912,0.01158806,85780.0,85774.0,0.01165854]
[1764565734048,0.23313844,85786.0,85776.0,0.24482148]
[1764565734049,0.24480129,85784.0,85776.0,0.24482148]
[1764565734285,0.24480129,85784.0,85778.0,0.23315823]
[1764565734286,0.01165718,85784.0,85778.0,0.23315823]
[1764565734458,4.001e-05,85787.0,85784.0,0.01165718]
[1764565734854,0.01169678,85787.0,85781.0,0.01165759]
[1764565735078,0.01165691,85786.0,85781.0,0.01165759]
[1764565735300,0.002,85784.0,85782.0,0.23314914]
[1764565735522,4.001e-05,85787.0,85784.0,0.01165718]
[1764565735711,0.00104001,85787.0,85784.0,0.01465718]
[1764565736057,0.24479916,85785.0,85782.0,0.00010119]
[1764565736258,0.23314618,85784.0,85782.0,0.00010119]
[1764565736908,0.24473424,85784.0,85782.0,0.00010119]
[1764565737263,0.23314618,85784.0,85782.0,0.00010119]
[1764565738059,0.01158806,85786.0,85782.0,0.00010119]
[1764565738235,0.001,85784.0,85782.0,0.00310119]
[1764565738467,0.23314642,85783.0,85782.0,0.00010119]
[1764565738812,0.23314642,85783.0,85782.0,0.00210119]
[1764565739013,0.23314642,85783.0,85782.0,0.00010119]
[1764565739548,0.23314642,85783.0,85782.0,0.00310119]
[1764565739756,0.001,85784.0,85782.0,0.00310119]
[1764565740188,0.001,85784.0,85782.0,0.23624893]
[1764565740604,0.08210213,85790.0,85784.0,0.01165718]
[1764565740788,0.08210213,85790.0,85784.0,0.24480055]
[1764565741363,0.0074,85795.0,85781.0,0.01165759]
[1764565741585,0.01165582,85794.0,85789.0,0.0116565]
[1764565741932,0.01165623,85791.0,85786.0,0.01165691]
[1764565742113,0.01165582,85794.0,85788.0,0.01165664]
[1764565742330,0.01165582,85794.0,85786.0,0.01165691]
[1764565742331,0.001,85790.0,85786.0,0.01165691]
[1764565742564,0.01165582,85794.0,85789.0,0.0116565]
[1764565742767,0.00011866,85795.0,85790.0,0.01165637]
[1764565742897,0.00011866,85795.0,85784.0,0.01165718]
[1764565743098,0.00011866,85795.0,85782.0,0.01165745]
[1764565743099,0.01165677,85787.0,85782.0,0.01165745]
[1764565743436,0.01165718,85784.0,85780.0,0.0074]
[1764565743593,0.24479463,85787.0,85780.0,0.00025751]
[1764565743594,0.01165677,85787.0,85780.0,0.00025751]
[1764565743796,0.01165718,85784.0,85780.0,0.01191523]
[1764565743999,0.01165664,85788.0,85781.0,0.01165759]
[1764565744241,0.01165691,85786.0,85781.0,0.01165759]
[1764565744423,0.01165704,85785.0,85782.0,0.004]
[1764565744604,0.01165704,85785.0,85780.0,0.00025751]
[1764565744792,0.01165664,85788.0,85780.0,0.01191523]
[1764565744992,0.001,85784.0,85781.0,0.01165759]
[1764565745192,0.01165704,85785.0,85781.0,0.01165759]
[1764565745410,0.24479478,85787.0,85781.0,0.01165759]
[1764565745779,0.01265704,85785.0,85782.0,0.004]
[1764565745963,0.2331437,85784.0,85782.0,0.004]
[1764565746823,0.23314916,85782.0,85780.0,0.00025751]
[1764565747143,0.01158292,85781.0,85780.0,0.00025751]
[1764565747879,0.24473208,85782.0,85780.0,0.00025751]
[1764565748304,0.01165732,85783.0,85780.0,0.00425751]
[1764565748508,0.001,85781.0,85780.0,0.00425751]
[1764565748706,0.01165637,85790.0,85783.0,0.01165732]
[1764565748906,0.01165664,85788.0,85784.0,0.01165718]
[1764565749217,0.01165691,85786.0,85780.0,0.00025751]
[1764565749375,0.01165732,85783.0,85780.0,0.00025751]
[1764565749596,0.23315119,85782.0,85780.0,0.00025751]
[1764565750006,0.001,85782.0,85780.0,0.23741147]
[1764565750222,0.01165664,85788.0,85783.0,0.01165732]
[1764565750526,0.001,85783.0,85781.0,0.03279621]
[1764565750877,0.01165718,85784.0,85780.0,0.01191523]
[1764565751040,0.01165732,85783.0,85780.0,0.00025751]
[1764565751243,0.001,85782.0,85780.0,0.02539638]
[1764565751586,0.01165691,85786.0,85783.0,0.01165732]
[1764565751763,0.01165691,85786.0,85781.0,0.24480945]
[1764565752060,0.001,85783.0,85781.0,0.004]
[1764565752270,0.01158292,85782.0,85781.0,0.004]
[1764565753452,0.24473478,85781.0,85780.0,0.00025751]
[1764565753791,0.24473478,85781.0,85780.0,0.00325751]
[1764565753954,0.23315186,85781.0,85780.0,0.00025751]
[1764565754578,0.24470751,85792.0,85785.0,0.23313891]
[1764565754943,0.01165637,85790.0,85786.0,0.0327943]
[1764565755262,0.01905609,85792.0,85787.0,0.01165677]
[1764565755466,0.01165623,85791.0,85787.0,0.01165677]
[1764565755785,0.01905609,85792.0,85789.0,0.0116565]
[1764565755941,0.0074,85792.0,85789.0,0.0116565]
[1764565756141,0.01905609,85792.0,85787.0,0.24479003]
[1764565756341,0.0116565,85789.0,85783.0,0.01165732]
[1764565756548,0.24478879,85789.0,85783.0,0.24480172]
[1764565756744,0.02149647,85790.0,85785.0,0.01165704]
[1764565757071,0.0116565,85789.0,85784.0,0.24479912]
[1764565757389,0.0084,85792.0,85789.0,0.24478662]
[1764565757566,0.0074,85792.0,85789.0,0.24478662]
[1764565757747,0.0074,85792.0,85790.0,0.23312519]
[1764565757946,0.01165609,85792.0,85788.0,0.01165664]
[1764565758125,0.01165623,85791.0,85785.0,0.01165704]
[1764565758465,0.24479124,85788.0,85784.0,0.01165718]
[1764565758668,0.24479124,85788.0,85783.0,0.23190254]
[1764565758827,0.01165732,85783.0,85780.0,0.00025751]
[1764565759027,0.01165704,85785.0,85780.0,0.00025751]
[1764565759343,0.01165704,85785.0,85782.0,0.01165745]
[1764565760069,0.01165691,85786.0,85783.0,0.01165732]
[1764565760279,0.00665664,85788.0,85784.0,0.24479879]
[1764565760430,0.01165677,85787.0,85784.0,0.01165718]
[1764565760635,0.001,85785.0,85784.0,0.01165718]
[1764565760854,0.01165677,85787.0,85784.0,0.01165718]
[1764565761221,0.001,85786.0,85784.0,0.01165718]
[1764565761424,0.01165677,85787.0,85784.0,0.01165718]
[1764565761665,0.0098401,85790.0,85786.0,0.01165691]
[1764565761877,0.0116565,85789.0,85786.0,0.01165691]
[1764565762080,0.24478837,85789.0,85785.0,0.01165704]
[1764565762286,0.01165664,85788.0,85785.0,0.01165704]
[1764565762850,0.24478837,85789.0,85785.0,0.01165704]
[1764565763374,0.001,85788.0,85786.0,0.01165691]
[1764565763777,0.001,85788.0,85783.0,0.01165732]
[1764565763778,0.23313555,85787.0,85783.0,0.01165732]
[1764565764092,0.01165664,85788.0,85785.0,0.004]
[1764565764293,0.01165664,85788.0,85785.0,0.001]
[1764565764732,0.01265664,85788.0,85786.0,0.004]
[1764565764875,0.2457918,85788.0,85786.0,0.004]
[1764565765072,0.001,85788.0,85787.0,0.23313555]
[1764565765897,0.01165596,85793.0,85788.0,0.01165664]
[1764565766097,0.00011866,85795.0,85789.0,0.24478583]
[1764565766299,0.01165582,85794.0,85789.0,0.24478583]
[1764565766564,0.00011866,85795.0,85790.0,0.24478121]
[1764565766769,0.01177435,85795.0,85791.0,0.244779]
[1764565767395,0.01277435,85795.0,85791.0,0.244779]
[1764565767531,0.01177435,85795.0,85791.0,0.244779]
[1764565768145,0.00011866,85795.0,85793.0,0.23311925]
[1764565768578,0.00011866,85795.0,85791.0,0.01165623]
[1764565768749,0.01177435,85795.0,85791.0,0.01165623]
[1764565768954,0.01165582,85794.0,85791.0,0.002]
[1764565769403,0.01165596,85793.0,85789.0,0.24478598]
[1764565769611,0.00111866,85795.0,85792.0,0.23312196]
[1764565769902,0.00011866,85795.0,85794.0,0.23311653]
[1764565770853,0.00111866,85795.0,85794.0,0.23311653]
[1764565771268,0.00111866,85795.0,85792.0,0.24677805]
[1764565771681,0.00111866,85795.0,85794.0,0.23311653]
[1764565772113,0.00011866,85795.0,85794.0,0.23311653]
[1764565772295,0.00111866,85795.0,85794.0,0.23511653]
[1764565772494,0.00011866,85795.0,85794.0,0.23311653]
[1764565772898,0.00111866,85795.0,85794.0,0.23511653]
[1764565774129,0.24468302,85826.0,85818.0,0.24470194]
[1764565774336,0.01165243,85819.0,85809.0,0.01165378]
[1764565774515,0.01165324,85813.0,85806.0,0.01165419]
[1764565774714,0.01165338,85812.0,85807.0,0.01165406]
[1764565774916,0.01165351,85811.0,85806.0,0.01165419]
[1764565775117,0.01165338,85812.0,85807.0,0.01165406]
[1764565775324,0.01165351,85811.0,85807.0,0.01165406]
[1764565775520,0.01165351,85811.0,85807.0,0.24473358]
[1764565775735,0.01165351,85811.0,85807.0,0.01165406]
[1764565776133,0.24572568,85811.0,85807.0,0.01165406]
[1764565776329,0.24472568,85811.0,85807.0,0.01165406]
[1764565776532,0.24572568,85811.0,85807.0,0.01265406]
[1764565777027,0.01265351,85811.0,85807.0,0.001]
[1764565777250,0.001,85811.0,85808.0,0.24473032]
[1764565777764,0.001,85811.0,85809.0,0.23307357]
[1764565778373,0.01165256,85818.0,85814.0,0.24471491]
[1764565778549,0.01165256,85818.0,85815.0,0.01165297]
[1764565778748,0.01165229,85820.0,85815.0,0.24471016]
[1764565778984,0.01165243,85819.0,85816.0,0.01165283]
[1764565779178,0.01165243,85819.0,85815.0,0.24471016]
[1764565779179,0.24470322,85819.0,85815.0,0.01165297]
[1764565779379,0.01165256,85818.0,85815.0,0.01165297]
[1764565779528,0.01165256,85818.0,85814.0,0.01165311]
[1764565779942,0.01165256,85818.0,85815.0,0.001]
[1764565780203,0.01165256,85818.0,85814.0,0.01165311]
[1764565780833,0.02323494,85822.0,85816.0,0.01165283]
[1764565780982,0.01165215,85821.0,85818.0,0.01165256]
[1764565781185,0.0116527,85817.0,85814.0,0.01165311]
[1764565781385,0.01165256,85818.0,85815.0,0.01165297]
[1764565781587,0.01265256,85818.0,85815.0,0.001]
[1764565781788,0.24471821,85813.0,85808.0,0.01165392]
[1764565782036,0.01165338,85812.0,85809.0,0.01165378]
[1764565782341,0.01165243,85819.0,85812.0,0.23306746]
[1764565782496,0.01165202,85822.0,85816.0,0.01165283]
[1764565782706,0.01165188,85823.0,85818.0,0.01165256]
[1764565783366,0.001,85819.0,85818.0,0.01165256]
[1764565784606,0.01165161,85825.0,85820.0,0.01165229]
[1764565784865,0.0191701,85826.0,85822.0,0.01165202]
[1764565785182,0.00751862,85826.0,85823.0,0.2446879]
[1764565785774,0.00751862,85826.0,85824.0,0.23303331]
[1764565785953,0.00011862,85826.0,85824.0,0.23303331]
[1764565786154,0.003,85825.0,85824.0,0.23303331]
[1764565786380,0.00011862,85826.0,85824.0,0.23303331]
[1764565786784,0.00011862,85826.0,85823.0,0.01165188]
[1764565787339,0.00011862,85826.0,85824.0,0.23303325]
[1764565787538,0.00011862,85826.0,85822.0,0.01165202]
[1764565787539,0.0117701,85826.0,85822.0,0.01165202]
[1764565787691,0.003,85826.0,85825.0,0.01165161]
[1764565787859,0.003,85826.0,85825.0,0.24468182]
[1764565788055,0.0116508,85831.0,85826.0,0.01165148]
[1764565788315,0.01165107,85829.0,85825.0,0.01165161]
[1764565788464,0.001,85826.0,85823.0,0.01265188]
[1764565788664,0.0116512,85828.0,85823.0,0.24468781]
[1764565788904,0.0116512,85828.0,85824.0,0.01165175]
[1764565789165,0.001,85826.0,85825.0,0.001]
[1764565789516,0.0116512,85828.0,85824.0,0.01165175]
[1764565789816,0.24568256,85826.0,85823.0,0.001]
[1764565790019,0.23303502,85825.0,85823.0,0.001]
[1764565790397,0.001,85826.0,85824.0,0.23303257]
[1764565790952,0.00190541,85832.0,85828.0,0.23302397]
[1764565791095,0.01265148,85826.0,85825.0,0.001]
[1764565791297,0.001,85826.0,85825.0,0.001]
[1764565791830,0.0116512,85828.0,85825.0,0.01165161]
[1764565792062,0.001,85826.0,85825.0,0.01165161]
[1764565792400,0.01165107,85829.0,85825.0,0.01165161]
[1764565792401,0.0116512,85828.0,85825.0,0.01165161]
[1764565792638,0.001,85826.0,85825.0,0.01265161]
[1764565794382,0.001,85826.0,85825.0,0.03301762]
[1764565794585,0.001,85826.0,85825.0,0.12601871]
[1764565794933,0.001,85826.0,85825.0,0.12601887]
[1764565795413,0.00190541,85832.0,85831.0,0.23301604]
[1764565795758,0.00190541,85832.0,85829.0,0.24466999]
[1764565795759,0.01164591,85867.0,85849.0,0.23296718]
[1764565796112,0.0001186,85856.0,85855.0,0.2329509]
[1764565797196,0.0011186,85856.0,85855.0,0.2329509]
[1764565797603,0.0001186,85856.0,85855.0,0.2329509]
[1764565797810,0.0061186,85856.0,85855.0,0.2329509]
[1764565798013,0.0061186,85856.0,85855.0,0.2339509]
[1764565798194,0.0001186,85856.0,85855.0,0.2339509]
[1764565798379,0.0011186,85856.0,85855.0,0.2369509]
[1764565799020,0.0011186,85856.0,85855.0,0.2433509]
[1764565799234,0.0011186,85856.0,85855.0,0.2359509]
[1764565799439,0.0011186,85856.0,85855.0,0.2443509]
[1764565799871,0.0011186,85856.0,85855.0,0.2433509]
[1764565800335,0.0011186,85856.0,85855.0,0.2443509]
[1764565800730,0.0004,85880.0,85879.0,0.2328858]
[1764565800967,0.0004,85880.0,85870.0,0.01164551]
[1764565800968,0.00079524,85880.0,85870.0,0.01164551]
[1764565801167,0.00079524,85880.0,85872.0,0.01164523]
[1764565801378,0.69890699,85880.0,85857.0,0.01164727]
[1764565801583,0.69890699,85880.0,85865.0,0.01164618]
[1764565801584,0.01164523,85872.0,85865.0,0.01164618]
[1764565801786,0.01164537,85871.0,85866.0,0.01164605]
[1764565802034,0.24455022,85872.0,85870.0,0.001]
[1764565802472,0.01164578,85868.0,85864.0,0.01164632]
[1764565802765,0.01164605,85866.0,85865.0,0.001]
[1764565802976,0.24456711,85866.0,85865.0,0.001]
[1764565803180,0.01164632,85864.0,85859.0,0.011647]
[1764565803394,0.01164578,85868.0,85863.0,0.01164646]
[1764565803548,0.01164618,85865.0,85861.0,0.24457888]
[1764565803886,0.01164605,85866.0,85861.0,0.24457888]
[1764565803887,0.2445673,85866.0,85861.0,0.24458135]
[1764565804188,0.01164605,85866.0,85862.0,0.01164659]
[1764565804918,0.01164605,85866.0,85861.0,0.01164673]
[1764565805121,0.01164659,85862.0,85861.0,0.001]
[1764565805402,0.24457579,85863.0,85858.0,0.01164713]
[1764565805631,0.01164659,85862.0,85858.0,0.01164713]
[1764565805753,0.24457579,85863.0,85858.0,0.01164713]
[1764565805754,0.01164646,85863.0,85859.0,0.011647]
[1764565805954,0.01164605,85866.0,85862.0,0.01164659]
[1764565806367,0.01164618,85865.0,85861.0,0.01164673]
[1764565806759,0.01164618,85865.0,85860.0,0.01164686]
[1764565806966,0.01164659,85862.0,85858.0,0.01164713]
[1764565807319,0.0098401,85870.0,85865.0,0.23292227]
[1764565807519,0.0116451,85873.0,85867.0,0.24456411]
[1764565807722,0.01164442,85878.0,85869.0,0.01164564]
[1764565807879,0.01164483,85875.0,85871.0,0.01164537]
[1764565808087,0.01164469,85876.0,85871.0,0.01164537]
[1764565808290,0.01164429,85879.0,85873.0,0.0116451]
[1764565808491,0.01164429,85879.0,85876.0,0.01164469]
[1764565808666,0.01164429,85879.0,85874.0,0.24454198]
[1764565808866,0.00144638,85877.0,85874.0,0.24454198]
[1764565809070,0.24453067,85879.0,85874.0,0.01164496]
[1764565809307,0.002,85876.0,85874.0,0.01164496]
[1764565809507,0.01164429,85879.0,85874.0,0.01164496]
[1764565809931,0.01164442,85878.0,85870.0,0.01164551]
[1764565810105,0.23290419,85873.0,85868.0,0.01164578]
[1764565810326,0.01164483,85875.0,85872.0,0.01164523]
[1764565810681,0.01164442,85878.0,85873.0,0.0116451]
[1764565810814,0.01164442,85878.0,85874.0,0.01264496]
[1764565811204,0.24453996,85876.0,85870.0,0.01164551]
[1764565811407,0.01364483,85875.0,85872.0,0.001]
[1764565811623,0.01164483,85875.0,85870.0,0.01164551]
[1764565811827,0.24453805,85877.0,85872.0,0.01164523]
[1764565812047,0.23289665,85875.0,85874.0,0.001]
[1764565812254,0.01063534,85880.0,85877.0,0.23289122]
[1764565812461,0.00079524,85880.0,85877.0,0.24453578]
[1764565812696,0.00079524,85880.0,85878.0,0.32588742]
[1764565812901,0.244476,85898.0,85890.0,0.01164279]
[1764565813106,0.01164198,85896.0,85890.0,0.01164279]
[1764565813259,0.01164198,85896.0,85878.0,0.09300109]
[1764565813260,0.01164225,85894.0,85881.0,0.0074]
[1764565813472,0.23287621,85883.0,85874.0,0.01164496]
[1764565813682,0.0098401,85890.0,85882.0,0.01164388]
[1764565813919,0.0116432,85887.0,85882.0,0.01164388]
[1764565814119,0.01164307,85888.0,85883.0,0.01164374]
[1764565814456,0.01164307,85888.0,85884.0,0.01164361]
[1764565814657,0.00170336,85885.0,85884.0,0.01164361]
[1764565814896,0.00170336,85885.0,85882.0,0.24451936]
[1764565814897,0.01334683,85885.0,85882.0,0.001]
[1764565815105,0.01164185,85897.0,85889.0,0.08518161]
[1764565815342,0.01164198,85896.0,85890.0,0.01164279]
[1764565815518,0.0004,85900.0,85892.0,0.01164252]
[1764565815718,0.0004,85900.0,85898.0,0.23283391]
[1764565815927,0.0004,85900.0,85894.0,0.01164225]
[1764565816082,0.0004,85900.0,85897.0,0.01164185]
[1764565816083,0.0102401,85900.0,85897.0,0.01164185]
[1764565816288,0.0004,85900.0,85896.0,0.01164198]
[1764565816576,0.0004,85900.0,85899.0,0.23283158]
[1764565817614,0.0014,85900.0,85899.0,0.23583158]
[1764565818033,0.01163832,85923.0,85918.0,0.011639]
[1764565818443,0.01163832,85923.0,85917.0,0.01163914]
[1764565818837,0.01163832,85923.0,85919.0,0.01163886]
[1764565818998,0.01163859,85921.0,85917.0,0.01163914]
[1764565819201,0.02147883,85920.0,85913.0,0.01163968]
[1764565819404,0.0098401,85920.0,85915.0,0.23278822]
[1764565819716,0.0098401,85920.0,85913.0,0.01163968]
[1764565819717,0.011639,85918.0,85913.0,0.01163968]
[1764565819919,0.011639,85918.0,85914.0,0.01163954]
[1764565820122,0.011639,85918.0,85910.0,0.01164008]
[1764565820123,0.01163995,85911.0,85902.0,0.01164117]
[1764565820323,0.01164103,85903.0,85895.0,0.01164212]
[1764565820549,0.0116409,85904.0,85898.0,0.01164171]
[1764565820723,0.01163954,85914.0,85901.0,0.0116413]
[1764565820948,0.01164022,85909.0,85901.0,0.0116413]
[1764565821144,0.01164022,85909.0,85897.0,0.3258358]
[1764565821145,0.01164049,85907.0,85896.0,0.25187904]
[1764565821353,0.01164076,85905.0,85899.0,0.01164157]
[1764565821551,0.01164076,85905.0,85895.0,0.01164212]
[1764565821552,0.01164103,85903.0,85895.0,0.01164212]
[1764565821743,0.002,85904.0,85900.0,0.01164144]
[1764565822069,0.24445961,85904.0,85899.0,0.01164157]
[1764565822271,0.01164117,85902.0,85898.0,0.01164171]
[1764565822600,0.0116413,85901.0,85897.0,0.01164185]
[1764565822736,0.0116413,85901.0,85897.0,0.2444787]
[1764565822935,0.001,85907.0,85899.0,0.01164157]
[1764565823140,0.001,85907.0,85904.0,0.0116409]
[1764565823341,0.001,85907.0,85904.0,0.24445706]
[1764565823545,0.01164049,85907.0,85900.0,0.01164144]